[Event "FIDE WYCC Girls U18 2023"]
[Site "Montesilvano"]
[Date "2023.11.17"]
[Round "5.24"]
[White "Wisniowski, Natalie"]
[Black "Chavez Echeverria, Ana Karen"]
[Result "1-0"]
[ECO "A52"]
[WhiteElo "1901"]
[BlackElo "1230"]
[Annotator "NA"]
[PlyCount "165"]
[EventDate "2023.11.13"]
[EventType "swiss"]
[EventCountry "ITA"]
[SourceTitle "playchess.com"]
[Source "ChessBase"]
[SourceQuality "1"]
[TimeControl "40/5400+30:1800+30"]

1. d4 {[%emt 0:00:02]} Nf6 {[%emt 0:00:11]} 2. c4 {[%emt 0:00:11]} e5 {[%emt 0:00:10]} 3. dxe5 {[%emt 0:00:33]} Ng4 {[%emt 0:00:24]} 4. Nf3 {[%emt 0:00:29]} Nc6 {[%emt 0:00:21]} 5. e3 {[%emt 0:02:00]} Bb4+ {[%emt 0:02:00]} 6. Bd2 {[%emt 0:01:32]} Qe7 {[%emt 0:04:39]} 7. Be2 {[%emt 0:04:01]} Ngxe5 {[%emt 0:03:26]} 8. O-O {[%emt 0:01:52]} O-O {[%emt 0:01:09]} 9. Nc3 {[%emt 0:01:20]} Qc5 {[%emt 0:03:27]} 10. b3 {[%emt 0:07:00]} Qa5 {[%emt 0:05:06]} 11. Qc2 {[%emt 0:02:02]} d6 {[%emt 0:07:35]} 12. a3 {[%emt 0:04:15]} Bxc3 {[%emt 0:00:19]} 13. Bxc3 {[%emt 0:00:11]} Qb6 {[%emt 0:01:06]} 14. Rfd1 {[%emt 0:07:58]} Bg4 {[%emt 0:03:12]} 15. Ng5 {[%emt 0:03:55]} f5 {[%emt 0:03:46]} 16. Bxg4 {[%emt 0:05:49]} Nxg4 {[%emt 0:00:20]} 17. Nf3 {[%emt 0:02:55]} Nce5 {[%emt 0:03:14]} 18. Nxe5 {[%emt 0:03:23]} Nxe5 {[%emt 0:00:16]} 19. Rd5 {[%emt 0:00:26]} Rae8 {[%emt 0:02:31]} 20. Rad1 {[%emt 0:01:53]} Re6 {[%emt 0:08:34]} 21. c5 {[%emt 0:05:46]} Qc6 {[%emt 0:02:54]} 22. Qb2 {[%emt 0:00:49]} Rfe8 {[%emt 0:01:36]} 23. cxd6 {[%emt 0:02:58]} Rxd6 {[%emt 0:01:57]} 24. Rxd6 {[%emt 0:00:42]} cxd6 {[%emt 0:00:17]} 25. Qd2 {[%emt 0:00:14]} Re6 {[%emt 0:05:17]} 26. Bb4 {[%emt 0:05:32]} Rg6 {[%emt 0:01:01]} 27. Qd5+ {[%emt 0:00:59]} Nf7 {[%emt 0:01:43]} 28. g3 {[%emt 0:11:05]} Qxd5 {[%emt 0:02:07]} 29. Rxd5 {[%emt 0:00:01]} Rf6 {[%emt 0:01:02]} 30. Bc3 {[%emt 0:00:28]} Re6 {[%emt 0:09:36]} 31. Rxf5 {[%emt 0:00:46]} Re7 {[%emt 0:00:51]} 32. Rd5 {[%emt 0:02:23]} Rc7 {[%emt 0:00:56]} 33. Bb4 {[%emt 0:00:46]} Rc6 {[%emt 0:01:36]} 34. Kg2 {[%emt 0:00:53]} b6 {[%emt 0:00:15]} 35. e4 {[%emt 0:01:32]} h6 {[%emt 0:00:51]} 36. h4 {[%emt 0:01:26]} a5 {[%emt 0:01:01]} 37. Bd2 {[%emt 0:00:43]} Kf8 {[%emt 0:01:20]} 38. Be3 {[%emt 0:01:34]} Ne5 {[%emt 0:13:24]} 39. Bd4 {[%emt 0:01:04]} Nd7 {[%emt 0:02:19]} 40. Rf5+ {[%emt 0:00:00]} Kg8 {[%emt 0:00:00]} 41. Kf3 {[%emt 0:14:17]} Nc5 {[%emt 0:05:20]} 42. b4 {[%emt 0:02:52]} axb4 {[%emt 0:02:59]} 43. axb4 {[%emt 0:00:09]} Ne6 {[%emt 0:00:46]} 44. Be3 {[%emt 0:00:34]} Nc7 {[%emt 0:06:24]} 45. Kg2 {[%emt 0:11:49]} g6 {[%emt 0:01:38]} 46. Rf6 {[%emt 0:00:33]} Kg7 {[%emt 0:01:48]} 47. Bd4 {[%emt 0:00:49]} Nb5 {[%emt 0:01:09]} 48. Rxd6+ {[%emt 0:05:19]} Nxd4 {[%emt 0:00:09]} 49. Rxd4 {[%emt 0:00:04]} Kf6 {[%emt 0:00:14]} 50. f4 {[%emt 0:01:13]} h5 {[%emt 0:00:50]} 51. Kf3 {[%emt 0:01:09]} Rc3+ {[%emt 0:00:20]} 52. Kf2 {[%emt 0:00:06]} Ke6 {[%emt 0:00:50]} 53. Rd5 {[%emt 0:01:21]} Rc6 {[%emt 0:00:40]} 54. Ke3 {[%emt 0:00:23]} Rc3+ {[%emt 0:00:42]} 55. Rd3 {[%emt 0:02:46]} Rc4 {[%emt 0:00:45]} 56. Rd4 {[%emt 0:01:34]} Rc3+ {[%emt 0:01:11]} 57. Kf2 {[%emt 0:00:18]} Rc2+ {[%emt 0:00:55]} 58. Ke3 {[%emt 0:03:02]} Rc3+ {[%emt 0:00:07]} 59. Rd3 {[%emt 0:00:05]} Rc4 {[%emt 0:00:15]} 60. b5 {[%emt 0:00:26]} Rc5 {[%emt 0:02:25]} 61. Rb3 {[%emt 0:00:23]} Kf6 {[%emt 0:00:37]} 62. Kd4 {[%emt 0:01:37]} Ke6 {[%emt 0:00:40]} 63. Ke3 {[%emt 0:01:28]} Kf6 {[%emt 0:00:17]} 64. Kf3 {[%emt 0:00:04]} Rc4 {[%emt 0:00:21]} 65. Rd3 {[%emt 0:00:42]} Ke6 {[%emt 0:00:22]} 66. Rd5 {[%emt 0:00:34]} Rc3+ {[%emt 0:00:20]} 67. Kg2 {[%emt 0:05:19]} Rc2+ {[%emt 0:03:21]} 68. Kh3 {[%emt 0:00:01]} Rc3 {[%emt 0:02:54]} 69. Rg5 {[%emt 0:00:11]} Kf7 {[%emt 0:01:07]} 70. f5 {[%emt 0:00:21]} gxf5 {[%emt 0:00:19]} 71. Rxf5+ {[%emt 0:00:20]} Kg6 {[%emt 0:00:13]} 72. Rg5+ {[%emt 0:00:04]} Kh6 {[%emt 0:00:15]} 73. Re5 {[%emt 0:00:16]} Rc4 {[%emt 0:01:45]} 74. Re6+ {[%emt 0:00:05]} Kg7 {[%emt 0:00:07]} 75. Rxb6 {[%emt 0:00:20]} Rxe4 {[%emt 0:00:06]} 76. Rb8 {[%emt 0:00:11]} Re5 {[%emt 0:00:11]} 77. b6 {[%emt 0:00:09]} Rb5 {[%emt 0:00:09]} 78. b7 {[%emt 0:00:13]} Kf7 {[%emt 0:00:14]} 79. Rh8 {[%emt 0:00:09]} Kg7 {[%emt 0:00:44]} 80. b8=Q {[%emt 0:00:09]} Rf5 {[%emt 0:00:54]} 81. Qg8+ {[%emt 0:00:20]} Kf6 {[%emt 0:00:06]} 82. Rh6+ {[%emt 0:00:11]} Ke5 {[%emt 0:00:05]} 83. Qe6+ 1-0

[Event "FIDE WYCC Girls U18 2023"]
[Site "Montesilvano"]
[Date "2023.11.17"]
[Round "5.25"]
[White "Katter, Katharina"]
[Black "Latifah, Darmaki"]
[Result "0-1"]
[ECO "D31"]
[WhiteElo "1887"]
[BlackElo "1367"]
[Annotator "NA"]
[PlyCount "62"]
[EventDate "2023.11.13"]
[EventType "swiss"]
[EventCountry "ITA"]
[SourceTitle "playchess.com"]
[Source "ChessBase"]
[SourceQuality "1"]
[TimeControl "40/5400+30:1800+30"]

1. d4 {[%emt 0:00:04]} d5 {[%emt 0:00:07]} 2. c4 {[%emt 0:00:15]} e6 {[%emt 0:00:09]} 3. Nc3 {[%emt 0:00:20]} c6 {[%emt 0:00:13]} 4. Nf3 {[%emt 0:00:25]} f5 {[%emt 0:00:44]} 5. Bf4 {[%emt 0:00:45]} Nf6 {[%emt 0:00:23]} 6. e3 {[%emt 0:00:26]} Be7 {[%emt 0:00:08]} 7. Bd3 {[%emt 0:00:20]} O-O {[%emt 0:00:17]} 8. h3 {[%emt 0:00:14]} Ne4 {[%emt 0:00:42]} 9. g4 {[%emt 0:00:44]} Qa5 {[%emt 0:01:30]} 10. Bxe4 {[%emt 0:09:16]} fxe4 {[%emt 0:14:49]} 11. Ne5 {[%emt 0:00:39]} Nd7 {[%emt 0:08:53]} 12. h4 {[%emt 0:06:29]} Nxe5 {[%emt 0:04:46]} 13. Bxe5 {[%emt 0:00:43]} Bf6 {[%emt 0:04:46]} 14. Bd6 {[%emt 0:08:38]} Rf7 {[%emt 0:31:33]} 15. g5 {[%emt 0:11:00]} Be7 {[%emt 0:00:37]} 16. Be5 {[%emt 0:01:24]} Rf3 {[%emt 0:00:45]} 17. Qd2 {[%emt 0:04:03]} b5 {[%emt 0:00:29]} 18. cxb5 {[%emt 0:04:02]} cxb5 {[%emt 0:01:11]} 19. Nxe4 {[%emt 0:01:21]} b4 {[%emt 0:09:52]} 20. Ng3 {[%emt 0:10:38]} Ba6 {[%emt 0:14:33]} 21. a4 {[%emt 0:06:44]} Raf8 {[%emt 0:00:22]} 22. Bf4 {[%emt 0:00:54]} R8xf4 {[%emt 0:01:37]} 23. exf4 {[%emt 0:00:09]} Rd3 {[%emt 0:00:01]} 24. Qxd3 {[%emt 0:06:08]} Bxd3 {[%emt 0:00:02]} 25. Kd2 {[%emt 0:00:34]} Bc4 {[%emt 0:00:24]} 26. Ke3 {[%emt 0:00:40]} b3 {[%emt 0:00:18]} 27. Rhd1 {[%emt 0:00:36]} Bb4 {[%emt 0:00:39]} 28. Kf3 {[%emt 0:00:41]} Qc7 {[%emt 0:03:03]} 29. Nh5 {[%emt 0:00:45]} Qf7 {[%emt 0:00:32]} 30. Ng3 {[%emt 0:01:09]} Bd6 {[%emt 0:00:14]} 31. Ne2 {[%emt 0:00:27]} Qh5+ {[%emt 0:00:30]} 0-1

[Event "FIDE WYCC Girls U18 2023"]
[Site "Montesilvano"]
[Date "2023.11.17"]
[Round "5.26"]
[White "Obada, Ema"]
[Black "Saraci, Rinesa"]
[Result "1-0"]
[ECO "C47"]
[WhiteElo "2023"]
[BlackElo "1481"]
[Annotator "NA"]
[PlyCount "79"]
[EventDate "2023.11.13"]
[EventType "swiss"]
[EventCountry "ITA"]
[SourceTitle "playchess.com"]
[Source "ChessBase"]
[SourceQuality "1"]
[TimeControl "40/5400+30:1800+30"]

1. e4 {[%emt 0:00:03]} e5 {[%emt 0:00:08]} 2. Nf3 {[%emt 0:00:05]} Nc6 {[%emt 0:00:08]} 3. Nc3 {[%emt 0:00:07]} Nf6 {[%emt 0:01:08]} 4. d4 {[%emt 0:00:10]} exd4 {[%emt 0:01:57]} 5. Nxd4 {[%emt 0:00:06]} d6 {[%emt 0:02:08]} 6. Bb5 {[%emt 0:00:30]} Bd7 {[%emt 0:01:06]} 7. Bxc6 {[%emt 0:00:22]} bxc6 {[%emt 0:00:37]} 8. Qf3 {[%emt 0:00:24]} Be7 {[%emt 0:07:22]} 9. e5 {[%emt 0:12:32]} dxe5 {[%emt 0:25:26]} 10. Nxc6 {[%emt 0:00:43]} Bxc6 {[%emt 0:00:45]} 11. Qxc6+ {[%emt 0:00:05]} Nd7 {[%emt 0:00:06]} 12. Be3 {[%emt 0:23:44]} O-O {[%emt 0:15:14]} 13. O-O-O {[%emt 0:06:30]} Bd6 {[%emt 0:01:52]} 14. Nb5 {[%emt 0:00:37]} Nf6 {[%emt 0:02:45]} 15. Nxd6 {[%emt 0:01:22]} cxd6 {[%emt 0:01:30]} 16. Rxd6 {[%emt 0:01:31]} Rc8 {[%emt 0:07:17]} 17. Rxd8 {[%emt 0:00:38]} Rxc6 {[%emt 0:00:09]} 18. Rxf8+ {[%emt 0:01:16]} Kxf8 {[%emt 0:00:07]} 19. Bxa7 {[%emt 0:00:06]} Ke8 {[%emt 0:03:56]} 20. a3 {[%emt 0:01:42]} Nd7 {[%emt 0:02:36]} 21. Be3 {[%emt 0:01:07]} e4 {[%emt 0:02:50]} 22. Bd4 {[%emt 0:00:52]} f5 {[%emt 0:05:25]} 23. g3 {[%emt 0:02:17]} g6 {[%emt 0:00:33]} 24. b4 {[%emt 0:01:12]} Kd8 {[%emt 0:03:15]} 25. Kb2 {[%emt 0:00:28]} Kc7 {[%emt 0:01:19]} 26. Kb3 {[%emt 0:01:38]} Nf8 {[%emt 0:02:17]} 27. b5 {[%emt 0:00:59]} Re6 {[%emt 0:00:49]} 28. a4 {[%emt 0:00:38]} Kb7 {[%emt 0:02:07]} 29. a5 {[%emt 0:00:16]} Rd6 {[%emt 0:00:48]} 30. Bc5 {[%emt 0:00:17]} Rd8 {[%emt 0:00:52]} 31. Bxf8 {[%emt 0:04:00]} Rxf8 {[%emt 0:00:06]} 32. Rd1 {[%emt 0:00:25]} Rf7 {[%emt 0:00:30]} 33. c4 {[%emt 0:01:23]} f4 {[%emt 0:02:31]} 34. Re1 {[%emt 0:01:36]} fxg3 {[%emt 0:01:49]} 35. fxg3 {[%emt 0:00:05]} Rf2 {[%emt 0:01:19]} 36. Rxe4 {[%emt 0:00:12]} Rxh2 {[%emt 0:00:11]} 37. Re7+ {[%emt 0:00:13]} Kb8 {[%emt 0:00:50]} 38. Kb4 {[%emt 0:00:24]} Rh3 {[%emt 0:01:24]} 39. Kc5 {[%emt 0:00:29]} Rxg3 {[%emt 0:02:01]} 40. Kc6 {[%emt 0:00:00]} 1-0

[Event "FIDE WYCC Girls U18 2023"]
[Site "Montesilvano"]
[Date "2023.11.17"]
[Round "5.27"]
[White "Alexandrova, Angelina"]
[Black "Darweeche, Roaa"]
[Result "1/2-1/2"]
[ECO "B22"]
[WhiteElo "1814"]
[BlackElo "1406"]
[Annotator "NA RC"]
[PlyCount "25"]
[EventDate "2023.11.13"]
[EventType "swiss"]
[EventCountry "ITA"]
[SourceTitle "playchess.com"]
[Source "ChessBase"]
[SourceQuality "1"]
[TimeControl "40/5400+30:1800+30"]

1. e4 {[%emt 0:00:02]} c5 {[%emt 0:00:10]} 2. c3 {[%emt 0:00:05]} d5 {[%emt 0:00:07]} 3. exd5 {[%emt 0:00:04]} Qxd5 {[%emt 0:00:11]} 4. d4 {[%emt 0:00:04]} Nc6 {[%emt 0:00:17]} 5. Nf3 {[%emt 0:00:08]} Nf6 {[%emt 0:00:05]} 6. Na3 {[%emt 0:00:17]} Bg4 {[%emt 0:00:17]} 7. Be2 {[%emt 0:04:46]} cxd4 {[%emt 0:01:21]} 8. cxd4 {[%emt 0:04:56]} O-O-O {[%emt 0:10:56]} 9. Be3 {[%emt 0:26:41]} Kb8 {[%emt 0:00:12]} 10. Bc1 {[%emt 0:00:10]} Kc8 {[%emt 0:00:06]} 11. Be3 {[%emt 0:00:04]} Kb8 {[%emt 0:00:19]} 12. Bc1 {[%emt 0:00:05]} Kc8 {[%emt 0:00:03]} 13. Be3 {[%emt 0:00:05]} 1/2-1/2

[Event "FIDE WYCC Girls U18 2023"]
[Site "Montesilvano"]
[Date "2023.11.17"]
[Round "5.28"]
[White "Lu, Yun-Ru"]
[Black "Keerti Shree Reddy"]
[Result "0-1"]
[ECO "B27"]
[WhiteElo "1284"]
[BlackElo "1741"]
[Annotator "NA RC"]
[PlyCount "44"]
[EventDate "2023.11.13"]
[EventType "swiss"]
[EventCountry "ITA"]
[SourceTitle "playchess.com"]
[Source "ChessBase"]
[SourceQuality "1"]
[TimeControl "40/5400+30:1800+30"]

1. e4 {[%emt 0:00:03]} c5 {[%emt 0:00:37]} 2. Nf3 {[%emt 0:00:09]} g6 {[%emt 0:00:05]} 3. Nc3 {[%emt 0:00:24]} Bg7 {[%emt 0:00:07]} 4. Be2 {[%emt 0:02:06]} Nc6 {[%emt 0:00:12]} 5. O-O {[%emt 0:00:59]} d6 {[%emt 0:00:43]} 6. Re1 {[%emt 0:00:38]} Nf6 {[%emt 0:00:11]} 7. Bc4 {[%emt 0:01:17]} O-O {[%emt 0:01:43]} 8. h3 {[%emt 0:00:13]} a6 {[%emt 0:02:46]} 9. a4 {[%emt 0:00:35]} Bd7 {[%emt 0:00:41]} 10. d3 {[%emt 0:01:07]} Rc8 {[%emt 0:01:32]} 11. Bf4 {[%emt 0:00:56]} Na5 {[%emt 0:06:50]} 12. b3 {[%emt 0:11:57]} Bc6 {[%emt 0:08:20]} 13. Rb1 {[%emt 0:00:49]} Nh5 {[%emt 0:06:48]} 14. Bd2 {[%emt 0:00:31]} e6 {[%emt 0:00:35]} 15. Ne2 {[%emt 0:01:19]} d5 {[%emt 0:05:05]} 16. b4 {[%emt 0:04:36]} dxe4 {[%emt 0:12:39]} 17. Ng5 {[%emt 0:09:36]} Nxc4 {[%emt 0:03:30]} 18. dxc4 {[%emt 0:00:27]} cxb4 {[%emt 0:02:30]} 19. Bxb4 {[%emt 0:01:18]} Qxg5 {[%emt 0:01:00]} 20. Bxf8 {[%emt 0:01:04]} Rxf8 {[%emt 0:05:51]} 21. a5 {[%emt 0:02:44]} e3 {[%emt 0:01:53]} 22. f3 {[%emt 0:00:30]} Bxf3 {[%emt 0:01:28]} 0-1

[Event "FIDE WYCC Girls U18 2023"]
[Site "Montesilvano"]
[Date "2023.11.17"]
[Round "5.29"]
[White "Gonzalez Romo, Greshya Jocelyn"]
[Black "Tsapaki, Asimenia"]
[Result "0-1"]
[ECO "C02"]
[WhiteElo "1494"]
[BlackElo "1702"]
[Annotator "NA"]
[PlyCount "76"]
[EventDate "2023.11.13"]
[EventType "swiss"]
[EventCountry "ITA"]
[SourceTitle "playchess.com"]
[Source "ChessBase"]
[SourceQuality "1"]
[TimeControl "40/5400+30:1800+30"]

1. e4 {[%emt 0:00:03]} e6 {[%emt 0:00:07]} 2. d4 {[%emt 0:00:14]} d5 {[%emt 0:00:05]} 3. e5 {[%emt 0:00:18]} c5 {[%emt 0:00:06]} 4. c3 {[%emt 0:00:28]} Nc6 {[%emt 0:00:07]} 5. Nf3 {[%emt 0:00:14]} Qb6 {[%emt 0:00:14]} 6. a3 {[%emt 0:01:44]} Bd7 {[%emt 0:00:07]} 7. b4 {[%emt 0:00:18]} cxd4 {[%emt 0:00:06]} 8. cxd4 {[%emt 0:00:07]} Rc8 {[%emt 0:00:06]} 9. Be3 {[%emt 0:01:31]} Nh6 {[%emt 0:00:17]} 10. Bd3 {[%emt 0:01:25]} Ng4 {[%emt 0:00:36]} 11. O-O {[%emt 0:02:42]} Be7 {[%emt 0:00:17]} 12. Nbd2 {[%emt 0:06:10]} Nxe3 {[%emt 0:00:36]} 13. fxe3 {[%emt 0:00:16]} Nb8 {[%emt 0:00:08]} 14. Rc1 {[%emt 0:15:14]} O-O {[%emt 0:02:05]} 15. Rxc8 {[%emt 0:04:10]} Rxc8 {[%emt 0:00:15]} 16. Qb1 {[%emt 0:01:58]} h6 {[%emt 0:01:12]} 17. Rc1 {[%emt 0:08:11]} Rxc1+ {[%emt 0:11:48]} 18. Qxc1 {[%emt 0:00:06]} Bf8 {[%emt 0:00:35]} 19. Nb3 {[%emt 0:03:12]} Bb5 {[%emt 0:01:09]} 20. Bb1 {[%emt 0:04:57]} Nc6 {[%emt 0:10:03]} 21. Qc2 {[%emt 0:03:24]} g6 {[%emt 0:00:19]} 22. Nh4 {[%emt 0:00:57]} Ne7 {[%emt 0:00:40]} 23. Nc5 {[%emt 0:03:05]} a5 {[%emt 0:01:30]} 24. a4 {[%emt 0:03:06]} Bc4 {[%emt 0:02:33]} 25. bxa5 {[%emt 0:02:40]} Qxa5 {[%emt 0:02:47]} 26. Kf2 {[%emt 0:00:32]} Qb6 {[%emt 0:02:20]} 27. Nd7 {[%emt 0:04:19]} Qb4 {[%emt 0:04:26]} 28. Nxf8 {[%emt 0:02:57]} Kxf8 {[%emt 0:00:17]} 29. Ba2 {[%emt 0:02:10]} Nc6 {[%emt 0:06:51]} 30. Nf3 {[%emt 0:03:49]} Na5 {[%emt 0:03:05]} 31. Nd2 {[%emt 0:12:11]} Ke8 {[%emt 0:06:23]} 32. Nxc4 {[%emt 0:06:14]} dxc4 {[%emt 0:01:28]} 33. e4 {[%emt 0:02:07]} Nb3 {[%emt 0:01:30]} 34. d5 {[%emt 0:03:07]} exd5 {[%emt 0:01:29]} 35. exd5 {[%emt 0:01:03]} Qc5+ {[%emt 0:00:07]} 36. Kf1 {[%emt 0:01:57]} Qxd5 {[%emt 0:00:41]} 37. Qe2 {[%emt 0:01:09]} Kf8 {[%emt 0:01:56]} 38. Qf3 {[%emt 0:00:40]} Nd2+ {[%emt 0:00:09]} 0-1

[Event "FIDE WYCC Girls U18 2023"]
[Site "Montesilvano"]
[Date "2023.11.17"]
[Round "5.30"]
[White "Belattar, Ines"]
[Black "Changkachith, Alyssa"]
[Result "*"]
[WhiteElo "1623"]
[BlackElo "1147"]
[Annotator "NA"]
[PlyCount "89"]
[EventDate "2023.11.13"]
[EventType "swiss"]
[EventCountry "ITA"]
[SourceTitle "playchess.com"]
[Source "ChessBase"]
[SourceQuality "1"]
[TimeControl "40/5400+30:1800+30"]

1. d4 {[%emt 0:00:06]} d5 {[%emt 0:00:11]} 2. Bf4 {[%emt 0:00:06]} e6 {[%emt 0:00:53]} 3. e3 {[%emt 0:00:09]} Nf6 {[%emt 0:00:29]} 4. c3 {[%emt 0:00:19]} Be7 {[%emt 0:00:41]} 5. Nf3 {[%emt 0:00:36]} Nbd7 {[%emt 0:00:22]} 6. Bd3 {[%emt 0:01:33]} c6 {[%emt 0:01:01]} 7. Nbd2 {[%emt 0:00:25]} h6 {[%emt 0:00:30]} 8. Ne5 {[%emt 0:06:12]} a6 {[%emt 0:20:36]} 9. Qf3 {[%emt 0:11:55]} Qb6 {[%emt 0:11:12]} 10. Rb1 {[%emt 0:01:50]} c5 {[%emt 0:04:06]} 11. h4 {[%emt 0:15:30]} Bd6 {[%emt 0:12:19]} 12. Nec4 {[%emt 0:04:55]} dxc4 {[%emt 0:12:07]} 13. Nxc4 {[%emt 0:00:09]} Qd8 {[%emt 0:00:58]} 14. Nxd6+ {[%emt 0:00:41]} Ke7 {[%emt 0:00:28]} 15. Nxb7 {[%emt 0:08:27]} Bxb7 {[%emt 0:07:59]} 16. Qxb7 {[%emt 0:00:08]} cxd4 {[%emt 0:00:37]} 17. exd4 {[%emt 0:01:41]} a5 {[%emt 0:03:03]} 18. O-O {[%emt 0:02:14]} Kf8 {[%emt 0:01:05]} 19. Bd6+ {[%emt 0:01:28]} Kg8 {[%emt 0:00:17]} 20. Bc7 {[%emt 0:07:12]} Qe8 {[%emt 0:02:12]} 21. Qb5 {[%emt 0:01:15]} g6 {[%emt 0:04:21]} 22. Bxa5 {[%emt 0:01:15]} Kg7 {[%emt 0:00:35]} 23. a3 {[%emt 0:03:59]} Rb8 {[%emt 0:03:09]} 24. Qc6 {[%emt 0:02:23]} Qe7 {[%emt 0:01:02]} 25. Bb4 {[%emt 0:00:33]} Qd8 {[%emt 0:00:42]} 26. Qf3 {[%emt 0:01:05]} Nd5 {[%emt 0:01:54]} 27. Bd6 {[%emt 0:01:12]} Rb6 {[%emt 0:01:06]} 28. Bg3 {[%emt 0:03:46]} N5f6 {[%emt 0:04:05]} 29. b4 {[%emt 0:03:00]} Nh5 {[%emt 0:01:02]} 30. c4 {[%emt 0:01:23]} Nxg3 {[%emt 0:00:48]} 31. fxg3 {[%emt 0:00:47]} Nf6 {[%emt 0:00:49]} 32. Qf4 {[%emt 0:04:37]} Rd6 {[%emt 0:00:48]} 33. Qe5 {[%emt 0:05:53]} Rxd4 {[%emt 0:02:01]} 34. Rbd1 {[%emt 0:00:46]} Rd7 {[%emt 0:02:11]} 35. b5 {[%emt 0:00:39]} Qe7 {[%emt 0:00:46]} 36. g4 {[%emt 0:00:47]} g5 {[%emt 0:00:54]} 37. hxg5 {[%emt 0:00:09]} hxg5 {[%emt 0:00:39]} 38. Qxg5+ {[%emt 0:00:06]} Kf8 {[%emt 0:00:08]} 39. Qxf6 {[%emt 0:00:23]} Qc5+ {[%emt 0:00:45]} 40. Qf2 {[%emt 0:00:00]} Qd6 {[%emt 0:00:00]} 41. Qf4 {[%emt 0:02:17]} Qxa3 {[%emt 0:03:21]} 42. Qb8+ {[%emt 0:12:19]} Kg7 {[%emt 0:09:29]} 43. Qe5+ {[%emt 0:00:18]} Kg8 {[%emt 0:00:25]} 44. Qg5+ {[%emt 0:00:47]} Kf8 {[%emt 0:00:28]} 45. Ra1 {[%emt 0:00:23]} *

[Event "FIDE WYCC Girls U18 2023"]
[Site "Montesilvano"]
[Date "2023.11.17"]
[Round "5.31"]
[White "Mohd Azman, Farihah Nur Aisyah"]
[Black "Hoanca, Alexia-Ioana"]
[Result "0-1"]
[ECO "D02"]
[WhiteElo "1379"]
[BlackElo "1830"]
[Annotator "NA"]
[PlyCount "78"]
[EventDate "2023.11.13"]
[EventType "swiss"]
[EventCountry "ITA"]
[SourceTitle "playchess.com"]
[Source "ChessBase"]
[SourceQuality "1"]
[TimeControl "40/5400+30:1800+30"]

1. d4 {[%emt 0:00:02]} d5 {[%emt 0:00:05]} 2. Nf3 {[%emt 0:00:05]} e6 {[%emt 0:00:16]} 3. Bf4 {[%emt 0:00:12]} Nf6 {[%emt 0:00:06]} 4. e3 {[%emt 0:00:28]} c5 {[%emt 0:00:05]} 5. c3 {[%emt 0:00:21]} Nc6 {[%emt 0:02:46]} 6. Nbd2 {[%emt 0:00:43]} cxd4 {[%emt 0:00:21]} 7. cxd4 {[%emt 0:00:38]} Qb6 {[%emt 0:02:34]} 8. Rb1 {[%emt 0:10:40]} Nh5 {[%emt 0:01:42]} 9. Bg3 {[%emt 0:00:18]} Nxg3 {[%emt 0:04:11]} 10. hxg3 {[%emt 0:00:07]} Bd6 {[%emt 0:01:09]} 11. a3 {[%emt 0:19:45]} h6 {[%emt 0:07:48]} 12. Bd3 {[%emt 0:08:14]} Bd7 {[%emt 0:02:49]} 13. b4 {[%emt 0:19:22]} O-O-O {[%emt 0:13:04]} 14. O-O {[%emt 0:04:24]} f5 {[%emt 0:09:46]} 15. Nb3 {[%emt 0:05:10]} Kb8 {[%emt 0:08:05]} 16. Nc5 {[%emt 0:04:41]} g5 {[%emt 0:07:52]} 17. Qd2 {[%emt 0:08:56]} Bxc5 {[%emt 0:15:03]} 18. dxc5 {[%emt 0:00:36]} Qc7 {[%emt 0:01:10]} 19. b5 {[%emt 0:02:15]} Ne5 {[%emt 0:00:34]} 20. Nxe5 {[%emt 0:00:29]} Qxe5 {[%emt 0:00:05]} 21. c6 {[%emt 0:04:07]} Be8 {[%emt 0:03:12]} 22. cxb7 {[%emt 0:01:04]} Qd6 {[%emt 0:02:37]} 23. Rfc1 {[%emt 0:04:07]} Rh7 {[%emt 0:07:54]} 24. a4 {[%emt 0:04:31]} Rxb7 {[%emt 0:04:02]} 25. a5 {[%emt 0:00:12]} d4 {[%emt 0:02:06]} 26. e4 {[%emt 0:01:11]} fxe4 {[%emt 0:02:22]} 27. Bxe4 {[%emt 0:00:07]} Rxb5 {[%emt 0:00:05]} 28. Bd3 {[%emt 0:00:46]} Rxb1 {[%emt 0:01:03]} 29. Rxb1+ {[%emt 0:00:11]} Ka8 {[%emt 0:00:19]} 30. Qc2 {[%emt 0:00:37]} Bc6 {[%emt 0:00:37]} 31. Qc4 {[%emt 0:01:03]} Qd5 {[%emt 0:00:53]} 32. Qxd5 {[%emt 0:00:37]} Bxd5 {[%emt 0:00:07]} 33. Re1 {[%emt 0:00:20]} Kb8 {[%emt 0:01:02]} 34. Ba6 {[%emt 0:00:35]} Kc7 {[%emt 0:00:33]} 35. Bf1 {[%emt 0:00:21]} Kd6 {[%emt 0:00:31]} 36. f4 {[%emt 0:00:31]} Rf8 {[%emt 0:00:41]} 37. fxg5 {[%emt 0:00:35]} hxg5 {[%emt 0:00:06]} 38. Bd3 {[%emt 0:00:13]} e5 {[%emt 0:00:35]} 39. Re2 {[%emt 0:00:53]} Re8 {[%emt 0:00:39]} 0-1

[Event "FIDE WYCC Girls U18 2023"]
[Site "Montesilvano"]
[Date "2023.11.17"]
[Round "5.32"]
[White "Hernandez Ortega, Carolina"]
[Black "Ham Corona, Ana Paola"]
[Result "1-0"]
[ECO "B27"]
[WhiteElo "1796"]
[BlackElo "1318"]
[Annotator "NA RC"]
[PlyCount "45"]
[EventDate "2023.11.13"]
[EventType "swiss"]
[EventCountry "ITA"]
[SourceTitle "playchess.com"]
[Source "ChessBase"]
[SourceQuality "1"]
[TimeControl "40/5400+30:1800+30"]

1. e4 {[%emt 0:00:05]} c5 {[%emt 0:00:27]} 2. Nf3 {[%emt 0:00:13]} g6 {[%emt 0:00:26]} 3. d4 {[%emt 0:00:09]} cxd4 {[%emt 0:00:35]} 4. Qxd4 {[%emt 0:00:14]} Nf6 {[%emt 0:00:32]} 5. e5 {[%emt 0:00:16]} Nc6 {[%emt 0:00:40]} 6. Qa4 {[%emt 0:00:26]} Nd5 {[%emt 0:00:26]} 7. Qe4 {[%emt 0:00:53]} Nb6 {[%emt 0:02:11]} 8. Nc3 {[%emt 0:00:25]} Bg7 {[%emt 0:00:41]} 9. Bf4 {[%emt 0:00:21]} O-O {[%emt 0:00:51]} 10. O-O-O {[%emt 0:00:30]} Re8 {[%emt 0:02:24]} 11. h4 {[%emt 0:06:33]} d5 {[%emt 0:03:46]} 12. exd6 {[%emt 0:02:38]} Bf5 {[%emt 0:04:10]} 13. Qe3 {[%emt 0:00:55]} Nb4 {[%emt 0:02:53]} 14. dxe7 {[%emt 0:02:12]} Nxa2+ {[%emt 0:03:42]} 15. Nxa2 {[%emt 0:02:27]} Bxb2+ {[%emt 0:00:59]} 16. Kxb2 {[%emt 0:00:06]} Qxd1 {[%emt 0:00:24]} 17. Qd2 {[%emt 0:11:18]} Nc4+ {[%emt 0:05:37]} 18. Bxc4 {[%emt 0:00:06]} Qxh1 {[%emt 0:00:09]} 19. Bxf7+ {[%emt 0:03:32]} Kxf7 {[%emt 0:01:32]} 20. Ng5+ {[%emt 0:00:26]} Kg8 {[%emt 0:03:09]} 21. Qd5+ {[%emt 0:00:16]} Kg7 {[%emt 0:04:34]} 22. Qf7+ {[%emt 0:00:09]} Kh6 {[%emt 0:00:24]} 23. Qxh7# 1-0